Cogmind - Beta 17.1 @@@ ROGUE MODE // 2026.09.21 @ 23:13:56 Player: Lazz Result: Destroyed by X-82 Rainmaker with Heavy Flak Cannon Performance ------------- Evolutions (7) 3500 Regions Visited (23) 4600 Robots Destroyed (90) 450 Value Destroyed (3436) 3436 Prototype IDs (39) 780 Alien Tech Used (0) 0 Bonus (2796) 2796 TOTAL SCORE: 15562 Bonus ------- High Alert Combat Kills 334 Follower Combat Kills 162 Entered Garrisons 200 Used RIF Installer 500 Entered DSFs 1000 Aligned with FarCom 300 Met Data Miner 300 Cogmind --------- Core Integrity 0/1300 Matter 158/300 Energy 100/100 System Corruption 3% Temperature Cool (0) Movement Core (50) Location -3/DSF Parts ------- > --- POWER (2) -------- (None) > --- PROPULSION (5) --- (None) > --- UTILITY (9) ------ (None) > --- WEAPON (5) ------- (None) > --- INVENTORY (5) ---- Relay Coupler [Proto] (9) Relay Coupler [Proto] (9) Relay Coupler [Proto] (9) Relay Coupler [Proto] (9) Improved Remote Datajack Peak State ------------ > --- POWER ------------ Light Angular Momentum Engine Micro Fission Core > --- PROPULSION ------- Improved Medium Treads Heavy Treads Heavy Treads > --- UTILITY ---------- Advanced Heat Sink Advanced Heat Sink Enhanced Optical Array Modified TNC Improved Salvage Targeting Computer > --- WEAPON ----------- High-powered Shock Rifle Compact Ion Cannon KE Penetrator Magnetic Acceleration Cannon Enhanced Gauss Cannon > --- INVENTORY -------- Light Angular Momentum Engine Heavy Treads Improved Heat Sink Heavy Shock Bomb Launcher [Rating: 95] Favorites ----------- Power Light Angular Momentum Engine Engine Light Angular Momentum Engine Power Core Light Nuclear Core Propulsion Heavy Treads Treads Heavy Treads Leg Flexi-carbon Leg Wheel Centrium Wheel Hover Unit Gravmag Array Flight Unit VTOL Module Utility Modified TNC Device Improved Heat Sink Storage Large Storage Unit Processor Modified TNC Protection Improved Light Armor Plating Weapon Makeshift Hammer Energy Gun Heavy Laser Energy Cannon Compact Ion Cannon Ballistic Gun Flak Gun Ballistic Cannon Magnetic Acceleration Cannon Launcher Heavy Missile Launcher Impact Weapon Makeshift Hammer Slashing Weapon Axe Build | -11 -10 -10 -9 -9 -9 -8 -8 -7 -7 -7 -6 -6 -6 -6 -6 -6 -5 -5 -5 -5 -4 -3 -3 ------- Run | Yrd Mat Min Mat Min Exi Min Mat Fac Low Low Fac Was Fac Low Low Dat Pro Fac DSF Gar Fac Res DSF Slots Evolved 14 | . . . 2 . . . 2 2 . . 2 . . . . . . 2 . . 2 2 . Power 1 | . . . . . . . . . . . . . . . . . . 1 . . . . . Propulsion 3 | . . . . . . . . 2 . . . . . . . . . 1 . . . . . Utility 7 | . . . 1 . . . 2 . . . . . . . . . . . . . 2 2 . Weapon 3 | . . . 1 . . . . . . . 2 . . . . . . . . . . . . Parts Attached 112 | 7 4 . 4 2 6 . 6 5 7 . 16 3 8 . 3 1 3 1 2 16 10 . 8 Power 15 | 1 . . . 1 1 . 1 1 . . 2 . . . 2 . . . . 5 1 . . Engine 10 | 1 . . . . . . 1 1 . . 2 . . . 2 . . . . 3 . . . Core 5 | . . . . 1 1 . . . . . . . . . . . . . . 2 1 . . Reactor . | . . . . . . . . . . . . . . . . . . . . . . . . Propulsion 35 | 2 2 . . . 1 . 1 3 3 . 5 1 2 . . 1 . 1 2 2 5 . 4 Treads 15 | 2 2 . . . 1 . . . 1 . 1 . . . . . . . 2 2 . . 4 Leg 5 | . . . . . . . . . . . 4 1 . . . . . . . . . . . Wheel 5 | . . . . . . . . . . . . . . . . . . . . . 5 . . Hover 9 | . . . . . . . 1 3 1 . . . 2 . . 1 . 1 . . . . . Flight 1 | . . . . . . . . . 1 . . . . . . . . . . . . . . Utility 19 | 2 1 . 1 . 3 . 2 1 1 . 4 . 2 . . . . . . 2 . . . Device 9 | 1 . . 1 . 1 . 1 1 . . . . 2 . . . . . . 2 . . . Storage 5 | 1 1 . . . 1 . . . 1 . 1 . . . . . . . . . . . . Processor 3 | . . . . . 1 . . . . . 2 . . . . . . . . . . . . Hackware . | . . . . . . . . . . . . . . . . . . . . . . . . Protection 2 | . . . . . . . 1 . . . 1 . . . . . . . . . . . . Artifact . | . . . . . . . . . . . . . . . . . . . . . . . . Weapon 43 | 2 1 . 3 1 1 . 2 . 3 . 5 2 4 . 1 . 3 . . 7 4 . 4 Energy Gun 16 | 1 1 . 1 1 . . 2 . 2 . 1 . 4 . . . . . . 3 . . . Energy Cannon 4 | . . . . . . . . . . . 1 . . . 1 . 1 . . . 1 . . Ballistic Gun 11 | 1 . . 1 . . . . . 1 . . . . . . . 2 . . 2 1 . 3 Ballistic Cannon 4 | . . . . . . . . . . . 1 . . . . . . . . 2 . . 1 Launcher 3 | . . . . . . . . . . . 1 2 . . . . . . . . . . . Special Weapon . | . . . . . . . . . . . . . . . . . . . . . . . . Impact Weapon 2 | . . . . . 1 . . . . . 1 . . . . . . . . . . . . Slashing Weapon 3 | . . . 1 . . . . . . . . . . . . . . . . . 2 . . Piercing Weapon . | . . . . . . . . . . . . . . . . . . . . . . . . Special Melee Weapon . | . . . . . . . . . . . . . . . . . . . . . . . . Unidentified Prototypes 5 | . . . . . 1 . 1 . . . . 2 . . 1 . . . . . . . . Parts Lost 65 | . . . . 8 . 1 2 . 7 3 6 3 . 1 1 . 4 . . 5 22 . 2 Power 11 | . . . . 2 . . . . . 1 1 . . . . . 1 . . 1 5 . . Propulsion 17 | . . . . 2 . . 1 . 4 1 . 1 . . . . . . . 1 7 . . Utility 9 | . . . . 2 . . 1 . 1 . 1 . . . . . 1 . . . 3 . . Weapon 28 | . . . . 2 . 1 . . 2 1 4 2 . 1 1 . 2 . . 3 7 . 2 Highest Loss Streak 10 | . . . . 8 . 1 1 . 3 3 4 3 . 1 1 . 2 . . 2 10 . 2 To Critical Strikes . | . . . . . . . . . . . . . . . . . . . . . . . . Average Backups 5 | 1 5 10 12 9 1 1 5 7 11 10 6 8 3 3 3 3 3 3 2 4 5 5 5 Power . | . 1 1 2 2 . . 1 1 1 1 . . . . . . . . . 1 . . . Propulsion 1 | . . 4 4 2 . . 3 3 2 2 . 1 1 2 2 2 2 1 . . . . . Utility 2 | . 2 2 2 1 . . . 3 4 4 4 6 . . . . . . . . 4 4 4 Weapon 1 | . 2 3 3 2 . . . . 3 3 1 1 2 1 1 1 1 2 2 1 . . . Tool/Special . | . . . . . . . . . . . . . . . . . . . . . . . . Unused Backups 24 | . . . . 7 . . . . 2 . 1 3 3 1 . . 1 . . 1 . . 5 Power 2 | . . . . 1 . . . . 1 . . . . . . . . . . . . . . Propulsion 3 | . . . . 1 . . . . . . 1 . 1 . . . . . . . . . . Utility 15 | . . . . 3 . . . . 1 . . 3 2 1 . . 1 . . . . . 4 Weapon 3 | . . . . 2 . . . . . . . . . . . . . . . 1 . . . Tool/Special 1 | . . . . . . . . . . . . . . . . . . . . . . . 1 Average Slot Usage (%) 73 | . 100 100 90 51 62 75 78 90 67 55 89 68 60 78 78 80 75 58 56 76 61 14 26 Engine 4 | . 14 14 11 4 . . 3 7 7 4 4 . . . 4 6 4 . . 4 7 . . Core 1 | . . . . . 8 11 5 . . . . . . . . . . . . 2 . . . Treads 8 | . 28 28 22 9 16 22 13 . 1 . 2 . . . . . . . 4 14 7 . 12 Leg 3 | . . . . . . . . . . . 22 20 . . . . . . . . . . . Hover 4 | . . . . . . . . 22 16 10 . . 12 13 13 13 13 17 11 . . . . Device 7 | . 14 14 16 11 . 1 8 13 7 7 . . 12 13 13 13 11 5 5 9 7 . . Storage 3 | . 14 14 11 5 8 11 9 7 7 7 6 3 . . . . . . . . . . . Processor 13 | . . . . . 9 11 9 7 7 7 17 20 20 20 20 20 20 17 17 17 14 9 7 Protection 1 | . . . . . . . 8 7 1 . 3 5 . . . . . . . . . . . Energy Gun 8 | . 19 28 27 20 11 7 11 15 7 1 4 4 7 24 18 13 6 . . 2 4 . . Energy Cannon 2 | . . . . . . . . . . . 4 . . . 1 6 10 11 11 6 3 . . Ballistic Gun 3 | . 8 . 1 . . . . . 2 7 4 . . . . . 7 5 5 5 5 . 2 Ballistic Cannon 2 | . . . . . . . . . . . 5 3 . . . . . . . 9 3 . . Impact Weapon 3 | . . . . . 8 11 9 7 1 . 5 6 6 6 6 6 1 . . . . . . Peak Build Rating 95 | 7 10 10 15 15 16 23 37 43 45 35 65 60 63 63 70 66 72 60 64 95 93 16 56 Average Rating 50 | 5 7 10 12 6 13 16 29 42 35 26 58 47 50 62 63 65 64 60 61 82 75 16 40 On Entrance 34 | . 7 10 10 15 2 16 16 30 43 35 24 55 20 63 59 66 66 55 60 64 90 16 16 Avg Prop Armor Cover (%) 9 | . . . . . . . . . 6 4 7 8 19 6 7 . 8 12 9 6 10 . . Naked Turns 25 | . . . . . . . . . . . . . . . . . . . . . . . 25 Heaviest Build 54 | 13 29 29 32 32 28 35 50 43 43 28 53 39 21 21 30 26 36 17 17 51 54 3 10 Greatest Support 140 | 40 46 46 46 46 43 43 43 24 28 17 77 37 40 20 40 40 40 20 140 140 140 3 140 Greatest Overweight (x) 4 | 3 . . . . . . 2 1 4 2 1 1 2 1 . . . . . . . . 3 Average Overweight (x) . | . . . . . . . . 1 1 1 . . 1 . . . . . . . . . . Largest Inventory Capacity 15 | 8 15 15 15 15 15 15 15 15 15 10 10 10 5 5 5 5 5 5 5 5 5 5 5 Average Capacity 8 | 7 14 15 15 9 12 15 15 15 14 10 10 8 5 5 5 5 5 5 5 5 5 5 5 Most Carried 15 | 5 10 10 15 15 5 2 9 8 15 10 10 10 5 5 5 4 5 4 4 5 5 5 5 Average Carried 5 | 2 6 10 12 9 1 . 5 7 11 10 6 7 4 4 4 3 4 4 3 4 5 5 5 Final Capacity 15 | 8 15 15 15 5 15 15 15 15 10 10 10 5 5 5 5 5 5 5 5 5 5 5 5 Final Carried 15 | 5 10 10 15 5 1 2 9 7 10 10 10 5 5 5 4 4 5 4 4 5 5 5 5 Class Distribution -------------------- 33% | Mutant 18% | Scavenger-Skirmisher 17% | Assassin 17% | Skirmisher 3% | Bothacker-Mutant Dominant Class ---------------- Mutant | -10/Materials Mutant | -10/Mines Gunner | -9/Materials Mutant | -9/Mines Mutant | -9/Exiles Mutant | -8/Mines Mutant | -8/Materials Mutant | -7/Factory Mutant | -7/Lower Caves Mutant | -7/Lower Caves Assassin | -6/Factory Assassin | -6/Waste Assassin | -6/Factory Skirmisher | -6/Lower Caves Skirmisher | -6/Lower Caves Skirmisher | -6/Data Miner Skirmisher | -5/Proximity Caves Scout | -5/Factory Scout | -5/DSF Scavenger-Skirmisher | -5/Garrison Scavenger-Skirmisher | -4/Factory Bothacker-Mutant | -3/Research Bothacker-Mutant | -3/DSF Resources | -11 -10 -10 -9 -9 -9 -8 -8 -7 -7 -7 -6 -6 -6 -6 -6 -6 -5 -5 -5 -5 -4 -3 -3 ----------- Run | Yrd Mat Min Mat Min Exi Min Mat Fac Low Low Fac Was Fac Low Low Dat Pro Fac DSF Gar Fac Res DSF Matter Collected 2562 | 264 35 . 62 20 . 73 72 . 140 . 305 . 149 183 20 . 53 . 21 909 70 . 186 Remotely . | . . . . . . . . . . . . . . . . . . . . . . . . Salvage Created 3663 | 131 38 . 280 150 . 24 249 . 242 . 536 . 35 205 165 . 96 . . 1178 241 . 93 Parts 179 | 11 . . 22 12 . 5 7 . 18 . 22 . . 7 1 . 5 . . 50 11 . 8 Haulers Intercepted 3 | . . . . . . . 1 . . . 2 . . . . . . . . . . . . Recyclers Shooed . | . . . . . . . . . . . . . . . . . . . . . . . . Parts Field Recycled . | . . . . . . . . . . . . . . . . . . . . . . . . Retrieved Matter . | . . . . . . . . . . . . . . . . . . . . . . . . Parts Self-Destructed 19 | . . . . . . . . . 12 5 . . . . . . 2 . . . . . . Prevented 13 | . . . . . . . . . 2 . . . . 6 3 . 2 . . . . . . Parts Restored . | . . . . . . . . . . . . . . . . . . . . . . . . Kills | -11 -10 -10 -9 -9 -9 -8 -8 -7 -7 -7 -6 -6 -6 -6 -6 -6 -5 -5 -5 -5 -4 -3 -3 ------- Run | Yrd Mat Min Mat Min Exi Min Mat Fac Low Low Fac Was Fac Low Low Dat Pro Fac DSF Gar Fac Res DSF Combat Hostiles Destroyed 75 | . 1 . 8 2 . 2 4 . 8 . 16 . . 1 . . 3 . . 23 5 . 2 Melee 4 | . . . . . . 1 . . . . . . . . . . . . . . 2 . 1 Guns 37 | . . . 8 2 . 1 3 . 8 . 4 . . . . . 1 . . 9 . . 1 Cannons 19 | . . . . . . . . . . . 2 . . . . . 2 . . 13 2 . . AOE 11 | . . . . . . . . . . . 10 . . . . . . . . 1 . . . Classes Destroyed 16 | 2 1 . 3 1 . . 1 . 1 . 2 . 1 1 . . 1 . . 1 . . 1 Worker 1 | . . . . . . . . . . . . . 1 . . . . . . . . . . Builder 4 | . . . . 1 . . . . . . 2 . 1 . . . . . . . . . . Tunneler 5 | 3 . . . 2 . . . . . . . . . . . . . . . . . . . Hauler 3 | . . . . . . . 1 . . . 2 . . . . . . . . . . . . Recycler 1 | 1 . . . . . . . . . . . . . . . . . . . . . . . Drone 2 | . . . . . . . . . . . . . . . . . 2 . . . . . . Watcher 1 | . . . 1 . . . . . . . . . . . . . . . . . . . . Swarmer 23 | . . . 2 . . 2 . . 7 . 6 . . . . . . . . 4 2 . . Cutter 1 | . . . . . . . . . . . . . . . . . . . . . . . 1 Grunt 25 | . 1 . 4 2 . . 4 . . . 1 . . 1 . . . . . 11 . . 1 Duelist 3 | . . . 2 . . . . . . . . . . . . . . . . 1 . . . Sentry 6 | . . . . . . . . . 1 . 3 . . . . . . . . 2 . . . Hunter 4 | . . . . . . . . . . . 2 . . . . . 1 . . 1 . . . Programmer 9 | . . . . . . . . . . . 4 . . . . . . . . 3 2 . . Behemoth 2 | . . . . . . . . . . . . . . . . . . . . 1 1 . . Packrat 2 | . . . . . . . . . . . . . . . 2 . . . . . . . . Samaritan 3 | . . . . . . . . . . . . . . 3 . . . . . . . . . Best Kill Streak 15 | 4 1 . 3 3 . 1 2 . 4 . 15 . 1 1 . . 1 . . 4 2 . 2 Combat Bots Only 11 | . 1 . 3 2 . 1 1 . 4 . 11 . . 1 . . 1 . . 4 2 . 2 Max Kills in Single Turn 4 | 1 1 . 1 2 . 1 1 . 1 . 4 . 1 1 1 . 1 . . 1 1 . 1 Gunslinging . | . . . . . . . . . . . . . . . . . . . . . . . . Exploded 3 | . . . . . . . . . . . 3 . . . . . . . . 1 . . . Melee 1 | . . . . . . 1 . . . . . . . . . . . . . . 1 . 1 Uniques/NPCs Destroyed . | . . . . . . . . . . . . . . . . . . . . . . . . Combat | -11 -10 -10 -9 -9 -9 -8 -8 -7 -7 -7 -6 -6 -6 -6 -6 -6 -5 -5 -5 -5 -4 -3 -3 -------- Run | Yrd Mat Min Mat Min Exi Min Mat Fac Low Low Fac Was Fac Low Low Dat Pro Fac DSF Gar Fac Res DSF Hostile Shots Fired 962 | . 6 . 16 23 . 16 51 . 112 14 128 4 . 24 20 . 47 . 5 123 258 . 115 Missed 304 | . 2 . 6 5 . 2 13 . 36 2 50 1 . 9 9 . 18 . 2 26 92 . 31 Hits 658 | . 4 . 10 18 . 14 38 . 76 12 78 3 . 15 11 . 29 . 3 97 166 . 84 Melee 36 | . . . 5 . . . . . . . . 3 . . . . . . . . . . 28 Projectile 622 | . 4 . 5 18 . 14 38 . 76 12 78 . . 15 11 . 29 . 3 97 166 . 56 AOE 21 | . . . . 18 . . . . . . . . . . . . . . . . 1 . 2 Critical Strikes 31 | . . . 1 . . . 4 . . 1 4 . . 1 1 . . . . 2 3 . 14 Damage Taken 12910 | . 58 . 216 809 . 114 633 . 857 202 1108 147 . 289 275 . 512 . 126 1938 3708 . 1918 Core 3384 | . . . 45 271 . 34 33 . 151 61 91 55 . 57 . . 97 . . 173 1010 . 1306 Absorbed by Shields 84 | . . . . . . . . . . . . . . . . . . . . . 19 . 65 Reduced by Siege Mode 61 | . . . . . . . . . . . . . . . . . . . . 52 9 . . Core Remaining (%) 66 | 100 . 100 . . . 12 94 . . 69 . . . . . . 64 . . 82 12 . . Volleys Fired 233 | 9 4 . 15 11 . 5 18 . 23 . 34 . 1 4 5 . 6 . . 63 27 . 8 Largest 5 | 2 2 . 3 3 . 1 2 . 3 . 4 . 1 3 1 . 5 . . 5 5 . 1 Hottest 302 | 60 90 . 140 130 . 40 134 . 187 . 202 . 55 165 90 . 302 . . 295 289 . 54 Shots Fired 556 | 18 8 . 39 31 . 5 28 . 44 . 73 . 1 11 5 . 17 . . 205 63 . 8 Gun 327 | 18 8 . 39 31 . 5 28 . 44 . 22 . 1 11 . . 10 . . 76 28 . 6 Cannon 217 | . . . . . . . . . . . 39 . . . 5 . 7 . . 129 35 . 2 Launcher 12 | . . . . . . . . . . . 12 . . . . . . . . . . . . Special . | . . . . . . . . . . . . . . . . . . . . . . . . Kinetic 241 | 9 . . 4 1 . . . . 5 . 36 . . . . . 2 . . 141 35 . 8 Thermal 265 | 9 8 . 35 30 . 5 28 . 31 . 25 . . . 5 . 12 . . 49 28 . . Explosive 12 | . . . . . . . . . . . 12 . . . . . . . . . . . . Electromagnetic 38 | . . . . . . . . . 8 . . . 1 11 . . 3 . . 15 . . . Robot Hit Streak 20 | 4 12 . 20 6 . 6 9 . 8 . 9 . . 6 . . 2 . . 20 10 . 1 Robot Miss Streak 9 | 2 . . 2 4 . . 5 . 9 . 5 . . 1 . . 6 . . 4 2 . 3 Penetration Max . | . . . . . . . . . . . . . . . . . . . . . . . . Secondary Targets 4 | . . . 2 1 . . . . 1 . . . . . . . . . . . . . . Max Gunslinging Chain 1 | . . . 1 1 . . . . 1 . . . . . . . . . . . . . . Shots Hit Robots 337 | 11 8 . 26 16 . 8 17 . 26 . 39 . 2 12 2 . 6 . . 117 44 . 3 Core Hits 168 | 6 1 . 16 8 . 2 8 . 14 . 44 . . 3 . . 4 . . 52 9 . 1 Critical Kills 3 | . . . . . . . . . . . . . . . . . . . . 1 1 . 1 Critical Parts Destroyed 3 | . . . . 1 . . 1 . . . . . 1 . . . . . . . . . . Critical Strikes 23 | . 1 . 2 2 . . 3 . 3 . . . 1 . . . . . . 9 1 . 1 Burn 9 | . 1 . 2 1 . . 2 . 3 . . . . . . . . . . . . . . Meltdown 1 | . . . . . . . . . . . . . . . . . . . . . 1 . . Destroy 3 | . . . . 1 . . . . . . . . . . . . . . . 1 . . 1 Blast 8 | . . . . . . . . . . . . . . . . . . . . 8 . . . Smash 2 | . . . . . . . 1 . . . . . 1 . . . . . . . . . . Melee Attacks 82 | . . . 2 . . 4 7 . . . 24 . 13 5 14 . . . . . 11 . 2 Impact 67 | . . . . . . 4 7 . . . 24 . 13 5 14 . . . . . . . . Slashing 15 | . . . 2 . . . . . . . . . . . . . . . . . 11 . 2 Piercing . | . . . . . . . . . . . . . . . . . . . . . . . . Sneak Attacks 7 | . . . . . . . . . . . . . 2 3 1 . . . . . 1 . . Combat Hostiles . | . . . . . . . . . . . . . . . . . . . . . . . . Follow-up Attacks . | . . . . . . . . . . . . . . . . . . . . . . . . Damage Inflicted 9741 | 114 100 . 326 194 . 149 329 . 441 . 2448 . 200 429 160 . 144 . . 3198 1416 . 93 Guns 3760 | 114 100 . 326 194 . 61 276 . 441 . 390 . . 124 . . 28 . . 1144 529 . 33 Cannons 3449 | . . . . . . . . . . . 559 . . . . . 116 . . 2013 716 . 45 Explosions 1498 | . . . . . . . . . . . 1457 . . . . . . . . 41 . . . Melee 1012 | . . . . . . 88 53 . . . 42 . 200 305 160 . . . . . 164 . . Ramming 22 | . . . . . . . . . . . . . . . . . . . . . 7 . 15 Kinetic 3507 | 37 . . 42 14 . . . . 20 . 516 . . . . . 16 . . 2102 682 . 78 Thermal 3744 | 77 100 . 284 180 . 61 276 . 372 . 881 . . . . . 116 . . 834 563 . . Explosive 1009 | . . . . . . . . . . . 1009 . . . . . . . . . . . . Electromagnetic 447 | . . . . . . . . . 49 . . . . 124 . . 12 . . 262 . . . Impact 848 | . . . . . . 88 53 . . . 42 . 200 305 160 . . . . . . . . Slashing 164 | . . . . . . . . . . . . . . . . . . . . . 164 . . Piercing . | . . . . . . . . . . . . . . . . . . . . . . . . Highest Corruption 5 | . 2 2 . . . . . . . . . . . . . . . . . 5 1 . 3 Average Corruption 2 | . 1 2 . . . . . . . . . . . . . . . . . 3 1 . 2 Corruption Purged . | . . . . . . . . . . . . . . . . . . . . . . . . Corruption Blocked . | . . . . . . . . . . . . . . . . . . . . . . . . Effects 24 | . . 2 . . . . . . . . . . . . . . . . . 18 4 . . Message Errors 6 | . . . . . . . . . . . . . . . . . . . . 4 2 . . Matter Fused 3 | . . . . . . . . . . . . . . . . . . . . 2 1 . . Heat Flow Errors 3 | . . . . . . . . . . . . . . . . . . . . 3 . . . Energy Discharges 4 | . . . . . . . . . . . . . . . . . . . . 4 . . . Parts Rejected 1 | . . . . . . . . . . . . . . . . . . . . 1 . . . Data Loss (minor) 2 | . . 1 . . . . . . . . . . . . . . . . . 1 . . . Data Loss (major) 2 | . . . . . . . . . . . . . . . . . . . . 1 1 . . Alerts 1 | . . 1 . . . . . . . . . . . . . . . . . . . . . Weapon Failures 2 | . . . . . . . . . . . . . . . . . . . . 2 . . . Overload Shots . | . . . . . . . . . . . . . . . . . . . . . . . . Overflow Damage 651 | . . . . . . . 31 . . . 170 . 170 176 50 . . . . 30 24 . . Projectiles 77 | . . . . . . . . . . . 31 . . . . . . . . 30 16 . . Explosions 139 | . . . . . . . . . . . 139 . . . . . . . . . . . . Melee 435 | . . . . . . . 31 . . . . . 170 176 50 . . . . . 8 . . Knockbacks 12 | . . . . . . . . . . . 2 . 2 . 1 . . . . 6 . . 1 Impact 3 | . . . . . . . . . . . . . 2 . 1 . . . . . . . . Kinetic 9 | . . . . . . . . . . . 2 . . . . . . . . 6 . . 1 Secondary . | . . . . . . . . . . . . . . . . . . . . . . . . Self-Inflicted Damage 190 | . . . . . . . . . . . 182 . . . . . . . . . 3 . 5 Shots 4 | . . . . . . . . . . . 4 . . . . . . . . . . . . Rammed 4 | . . . . . . . . . . . . . . . . . . . . . 1 . 3 Targets Rammed 5 | . . . . . . . . . . . . . . . . . . . . . 1 . 4 Kicked . | . . . . . . . . . . . . . . . . . . . . . . . . Crushed 1 | . . . . . . . . . . . . . . . . . . . . . . . 1 Highest Temperature 347 | 60 144 . 253 165 . . 315 . 324 31 347 . . 40 282 . 138 . . 335 234 . . Average Temperature 106 | 31 76 . 88 72 . . 105 . 151 13 109 . . 16 155 . 49 . . 113 109 . . Received Heat Transfer 2290 | . 24 . 24 27 . . 351 . 48 126 159 . . 120 383 . 57 . . 522 190 . 259 Effects 4 | . . . . . . . . . 2 . . . . . . . . . . 2 . . . Energy Bleed 1 | . . . . . . . . . 1 . . . . . . . . . . . . . . Interference 1 | . . . . . . . . . 1 . . . . . . . . . . . . . . Matter Decay 1 | . . . . . . . . . . . . . . . . . . . . 1 . . . Short Circuit 1 | . . . . . . . . . . . . . . . . . . . . 1 . . . Siege Activations 5 | . . . . . . . . . . . . . . . . . . . . 4 1 . . Total Turns 98 | . . . . . . . . . . . . . . . . . . . . 87 11 . . Longest Duration 26 | . . . . . . . . . . . . . . . . . . . . 26 11 . . Martial Activations . | . . . . . . . . . . . . . . . . . . . . . . . . Shielding Activations . | . . . . . . . . . . . . . . . . . . . . . . . . Robots Disrupted . | . . . . . . . . . . . . . . . . . . . . . . . . Combat Hostiles . | . . . . . . . . . . . . . . . . . . . . . . . . Robots Corrupted 7 | . . . . . . . 1 . . . . . 2 2 2 . . . . . . . . Combat Hostiles 2 | . . . . . . . 1 . . . . . . 1 . . . . . . . . . Parts Fried 9 | . . . . . . . 1 . . . . . 3 4 1 . . . . . . . . Impact Corruptions 15 | . . . . . . . 1 . . . . . 5 5 4 . . . . . . . . Robots Melted 2 | . 1 . . . . . . . . . . . . . . . . . . . 1 . . Combat Hostiles 2 | . 1 . . . . . . . . . . . . . . . . . . . 1 . . Parts Melted 8 | . 1 . . 1 . . 2 . 1 . 1 . . . . . . . . 1 1 . . Heat Transferred 6516 | 175 322 . 891 522 . 125 740 . 999 . 993 . . . . . 148 . . 972 629 . . Parts Sabotaged . | . . . . . . . . . . . . . . . . . . . . . . . . Parts Stolen . | . . . . . . . . . . . . . . . . . . . . . . . . Parts Stripped . | . . . . . . . . . . . . . . . . . . . . . . . . Power Chain Reactions 1 | . . . . . . . . . . . . . . . . . . . . 1 . . . Alert | -11 -10 -10 -9 -9 -9 -8 -8 -7 -7 -7 -6 -6 -6 -6 -6 -6 -5 -5 -5 -5 -4 -3 -3 ------- Run | Yrd Mat Min Mat Min Exi Min Mat Fac Low Low Fac Was Fac Low Low Dat Pro Fac DSF Gar Fac Res DSF Maximum Alert Level 3 | . . . . . . . . . . . 2 . . . . . . 1 1 3 2 . . Low Security (%) 60 | 100 100 100 100 100 . 100 100 100 . . 81 100 100 . . . . . . 9 . 100 100 Level 1 14 | . . . . . . . . . . . 6 . . . . . . 100 100 17 63 . . Level 2 17 | . . . . . . . . . . . 12 . . . . . . . . 42 36 . . Level 3 7 | . . . . . . . . . . . . . . . . . . . . 30 . . . Level 4 . | . . . . . . . . . . . . . . . . . . . . . . . . Level 5 . | . . . . . . . . . . . . . . . . . . . . . . . . High Security . | . . . . . . . . . . . . . . . . . . . . . . . . Max Security . | . . . . . . . . . . . . . . . . . . . . . . . . Peak Influence 997 | 15 20 . 87 67 . 30 45 14 . . 433 134 30 . . . . 344 248 997 522 148 143 Initial 522 | . . . . 22 . . . 8 . . . 134 30 . . . . 344 233 186 522 143 111 Average 220 | 1 1 . 36 23 . 2 14 1 . . 86 99 2 . . . . 340 236 574 389 143 118 Influence Increases 3640 | 20 27 . 228 80 . 51 177 14 225 . 641 . 49 60 165 . 205 300 15 901 433 5 44 Destroy 0b10 Robot/C 1560 | . 20 . 180 40 . 40 120 . 160 . 320 . . 20 . . 20 . . 500 100 . 40 Destroy 0b10 Robot/NC 85 | 20 . . 5 15 . . 5 . . . 20 . 10 . . . 10 . . . . . . Destroy Leader 246 | . . . 32 10 . 10 12 . 20 . 92 . . 10 . . 10 . . 30 20 . . Allied During Kill 15 | . . . 2 . . 1 5 . . . . . . . . . . . . 7 . . . Successful Hack 95 | . 7 . 7 . . . 2 14 . . . . 16 . . . . . . 28 16 5 . Disable Machine 90 | . . . . . . . . . . . 75 . 15 . . . . . . . . . . Anti-Garrison Action 150 | . . . . . . . . . . . . . . . . . . . . 150 . . . Destroy Structure 274 | . . . 2 . . . 3 . . . 134 . 8 . . . . . . 81 42 . 4 Advance Influence 300 | . . . . . . . . . . . . . . . . . . 300 . . . . . Lose Combat Pursuer 825 | . . . . 15 . . 30 . 45 . . . . 30 165 . 165 . 15 105 255 . . Influence Decreases 3505 | 20 27 . 169 139 . 50 159 33 225 . 256 341 93 20 155 50 135 36 101 152 1157 130 57 Entered New Map 1203 | . . . . 37 . . 1 11 . . . 251 14 . 8 50 . 26 101 62 475 130 37 Time Decay 1571 | 20 27 . 140 45 . 30 133 22 175 . 196 60 79 20 147 . 105 10 . . 362 . . Search Patrol Dispatched 100 | . . . . . . . . . . . . . . . . . . . . . 100 . . Lost Part 547 | . . . . 57 . 10 20 . 50 . 60 30 . . . . 30 . . 50 220 . 20 Lost Ally 84 | . . . 29 . . 10 5 . . . . . . . . . . . . 40 . . . Squads Dispatched 17 | . . . 1 . . . 2 . . . 3 . 1 . . . . . . . 8 . 2 Investigation 3 | . . . . . . . 1 . . . . . . . . . . . . . 2 . . Extermination 5 | . . . . . . . . . . . 2 . 1 . . . . . . . 2 . . Reinforcement 9 | . . . 1 . . . 1 . . . 1 . . . . . . . . . 4 . 2 Assault . | . . . . . . . . . . . . . . . . . . . . . . . . Garrison . | . . . . . . . . . . . . . . . . . . . . . . . . Intercept . | . . . . . . . . . . . . . . . . . . . . . . . . Searches Triggered 1 | . . . . . . . . . . . . . . . . . . . . . 1 . . Construction Impeded 3 | . . . . . . . . . . . 1 . . . . . . . . . 2 . . Haulers Reinforced . | . . . . . . . . . . . . . . . . . . . . . . . . Active Scanning Responses . | . . . . . . . . . . . . . . . . . . . . . . . . Cargo Convoy Interrupts . | . . . . . . . . . . . . . . . . . . . . . . . . Stealth | -11 -10 -10 -9 -9 -9 -8 -8 -7 -7 -7 -6 -6 -6 -6 -6 -6 -5 -5 -5 -5 -4 -3 -3 --------- Run | Yrd Mat Min Mat Min Exi Min Mat Fac Low Low Fac Was Fac Low Low Dat Pro Fac DSF Gar Fac Res DSF Distress Signals 4 | . . . 1 . . . 1 . . . . . . . . . 1 . . . 1 . . Communications Jammed . | . . . . . . . . . . . . . . . . . . . . . . . . Distress Signals . | . . . . . . . . . . . . . . . . . . . . . . . . Times Spotted 195 | . 2 . 11 4 . 5 18 1 11 7 16 6 . 3 10 . 15 . 2 29 35 . 20 Peak Tracking Total 14 | . 2 . 3 2 . 4 5 1 4 7 4 6 . 3 5 . 6 . 1 6 12 . 14 Tactical Retreats 26 | . . . . 1 . . 2 . 1 . . . . 1 4 . 4 . 1 7 5 . . Traps | -11 -10 -10 -9 -9 -9 -8 -8 -7 -7 -7 -6 -6 -6 -6 -6 -6 -5 -5 -5 -5 -4 -3 -3 ------- Run | Yrd Mat Min Mat Min Exi Min Mat Fac Low Low Fac Was Fac Low Low Dat Pro Fac DSF Gar Fac Res DSF Traps Triggered 8 | . 3 . . . . . 1 . . . 1 . . . . . . . . . 2 . 1 Indirectly . | . . . . . . . . . . . . . . . . . . . . . . . . Trap Hack Attempts . | . . . . . . . . . . . . . . . . . . . . . . . . Triggered . | . . . . . . . . . . . . . . . . . . . . . . . . Disarmed . | . . . . . . . . . . . . . . . . . . . . . . . . Reprogrammed . | . . . . . . . . . . . . . . . . . . . . . . . . Reused . | . . . . . . . . . . . . . . . . . . . . . . . . Traps Extracted . | . . . . . . . . . . . . . . . . . . . . . . . . Installed . | . . . . . . . . . . . . . . . . . . . . . . . . Triggered . | . . . . . . . . . . . . . . . . . . . . . . . . Machines | -11 -10 -10 -9 -9 -9 -8 -8 -7 -7 -7 -6 -6 -6 -6 -6 -6 -5 -5 -5 -5 -4 -3 -3 ---------- Run | Yrd Mat Min Mat Min Exi Min Mat Fac Low Low Fac Was Fac Low Low Dat Pro Fac DSF Gar Fac Res DSF Machines Disabled 8 | . . . . . . . . . . . 5 . 1 . . . . . . 2 . . . Max in Single Turn 3 | . . . . . . . . . . . 3 . 1 . . . . . . 1 . . . Machines Repaired . | . . . . . . . . . . . . . . . . . . . . . . . . Machines Dismantled . | . . . . . . . . . . . . . . . . . . . . . . . . Machines Sabotaged . | . . . . . . . . . . . . . . . . . . . . . . . . Overloaded Fab Kills . | . . . . . . . . . . . . . . . . . . . . . . . . Hacking | -11 -10 -10 -9 -9 -9 -8 -8 -7 -7 -7 -6 -6 -6 -6 -6 -6 -5 -5 -5 -5 -4 -3 -3 --------- Run | Yrd Mat Min Mat Min Exi Min Mat Fac Low Low Fac Was Fac Low Low Dat Pro Fac DSF Gar Fac Res DSF Machines Accessed 23 | . 1 . 1 1 1 . 1 1 . . 2 . 1 . . 4 . 1 . 2 6 1 . Terminals 15 | . 1 . 1 . . . . 1 . . 2 . 1 . . . . 1 . 2 5 1 . Fabricators . | . . . . . . . . . . . . . . . . . . . . . . . . Repair Stations 1 | . . . . . . . . . . . . . . . . . . . . . 1 . . Recycling Units . | . . . . . . . . . . . . . . . . . . . . . . . . Scanalyzers 1 | . . . . . . . 1 . . . . . . . . . . . . . . . . Garrison Access . | . . . . . . . . . . . . . . . . . . . . . . . . Total Hacks 78 | . 4 . 3 1 1 . 5 3 . . 4 . 3 . . 32 . 2 . 5 14 1 . Successful 47 | . 3 . 1 1 1 . 2 1 . . . . 1 . . 32 . 1 . 2 1 1 . Failed 30 | . 1 . 2 . . . 2 2 . . 4 . 2 . . . . 1 . 3 13 . . Catastrophic 4 | . . . 1 . . . . . . . 1 . . . . . . . . . 2 . . Database Lockouts 1 | . . . . . . . 1 . . . . . . . . . . . . . . . . Manual 10 | . 2 . . . 1 . . . . . 2 . . . . . . . . . 5 . . Terminals 37 | . 4 . 3 . . . . 3 . . 4 . 3 . . . . 2 . 5 12 1 . Fabricators . | . . . . . . . . . . . . . . . . . . . . . . . . Repair Stations 2 | . . . . . . . . . . . . . . . . . . . . . 2 . . Recycling Units . | . . . . . . . . . . . . . . . . . . . . . . . . Scanalyzers 5 | . . . . . . . 5 . . . . . . . . . . . . . . . . Garrison Access . | . . . . . . . . . . . . . . . . . . . . . . . . Terminal Hacks 44 | . 3 . 1 1 1 . . 1 . . . . 1 . . 32 . 1 . 2 . 1 . Record 11 | . . . . . . . . . . . . . . . . 11 . . . . . . . Part Schematic 12 | . . . . . . . . . . . . . . . . 12 . . . . . . . Robot Schematic 6 | . . . . . . . . . . . . . . . . 6 . . . . . . . Robot Analysis 2 | . 2 . . . . . . . . . . . . . . . . . . . . . . Prototype ID Bank 3 | . . . . . . . . . . . . . . . . 3 . . . . . . . Open Door 1 | . . . . 1 . . . . . . . . . . . . . . . . . . . Open DSF 2 | . . . . . . . . . . . . . . . . . . 1 . . . 1 . Branch Access Points 3 | . 1 . 1 . . . . . . . . . 1 . . . . . . . . . . Emergency Access Points 1 | . . . . . . . . . . . . . . . . . . . . 1 . . . Terminal Index 1 | . . . . . . . . 1 . . . . . . . . . . . . . . . Garrison Registry 1 | . . . . . . . . . . . . . . . . . . . . 1 . . . Proto ID Catalog 1 | . . . . . 1 . . . . . . . . . . . . . . . . . . Fabricator Hacks . | . . . . . . . . . . . . . . . . . . . . . . . . Repair Station Hacks 1 | . . . . . . . . . . . . . . . . . . . . . 1 . . Refit 1 | . . . . . . . . . . . . . . . . . . . . . 1 . . Recycling Unit Hacks . | . . . . . . . . . . . . . . . . . . . . . . . . Scanalyzer 2 | . . . . . . . 2 . . . . . . . . . . . . . . . . Retrieve Study 2 | . . . . . . . 2 . . . . . . . . . . . . . . . . Garrison Access Hacks . | . . . . . . . . . . . . . . . . . . . . . . . . Unauthorized Hacks . | . . . . . . . . . . . . . . . . . . . . . . . . Terminals . | . . . . . . . . . . . . . . . . . . . . . . . . Fabricators . | . . . . . . . . . . . . . . . . . . . . . . . . Repair Stations . | . . . . . . . . . . . . . . . . . . . . . . . . Recycling Units . | . . . . . . . . . . . . . . . . . . . . . . . . Scanalyzers . | . . . . . . . . . . . . . . . . . . . . . . . . Garrison Access . | . . . . . . . . . . . . . . . . . . . . . . . . Data Cores Recovered . | . . . . . . . . . . . . . . . . . . . . . . . . Used . | . . . . . . . . . . . . . . . . . . . . . . . . Hacking Detections 15 | . 1 . 1 . . . . 1 . . 2 . 1 . . . . 1 . 1 6 1 . Full Trace Events 3 | . . . . . . . . . . . . . . . . . . . . 1 2 . . Feedback Events . | . . . . . . . . . . . . . . . . . . . . . . . . Feedback Blocked . | . . . . . . . . . . . . . . . . . . . . . . . . Robot Schematics Acquired 6 | . . . . . . . . . . . . . . . . 6 . . . . . . . Robots Built . | . . . . . . . . . . . . . . . . . . . . . . . . Authchips . | . . . . . . . . . . . . . . . . . . . . . . . . Time . | . . . . . . . . . . . . . . . . . . . . . . . . Total Robot Build Rating . | . . . . . . . . . . . . . . . . . . . . . . . . Part Schematics Acquired 12 | . . . . . . . . . . . . . . . . 12 . . . . . . . Parts Built . | . . . . . . . . . . . . . . . . . . . . . . . . Authchips . | . . . . . . . . . . . . . . . . . . . . . . . . Time . | . . . . . . . . . . . . . . . . . . . . . . . . Total Part Build Rating . | . . . . . . . . . . . . . . . . . . . . . . . . Part Studies Acquired 2 | . . . . . . . 2 . . . . . . . . . . . . . . . . Parts Repaired . | . . . . . . . . . . . . . . . . . . . . . . . . Time . | . . . . . . . . . . . . . . . . . . . . . . . . Parts Recycled . | . . . . . . . . . . . . . . . . . . . . . . . . Recycled Matter . | . . . . . . . . . . . . . . . . . . . . . . . . Retrieved Matter . | . . . . . . . . . . . . . . . . . . . . . . . . Retrieved Components . | . . . . . . . . . . . . . . . . . . . . . . . . Parts Scanalyzed . | . . . . . . . . . . . . . . . . . . . . . . . . Part Schematics Acquired . | . . . . . . . . . . . . . . . . . . . . . . . . Parts Damaged . | . . . . . . . . . . . . . . . . . . . . . . . . Bothacking | -11 -10 -10 -9 -9 -9 -8 -8 -7 -7 -7 -6 -6 -6 -6 -6 -6 -5 -5 -5 -5 -4 -3 -3 ------------ Run | Yrd Mat Min Mat Min Exi Min Mat Fac Low Low Fac Was Fac Low Low Dat Pro Fac DSF Gar Fac Res DSF Used RIF Installer 1 | . . . . . . . . . . . . . . . . . . . . 1 . . . Robots Hacked . | . . . . . . . . . . . . . . . . . . . . . . . . Non-combat . | . . . . . . . . . . . . . . . . . . . . . . . . Combat . | . . . . . . . . . . . . . . . . . . . . . . . . Robot Hacks Applied . | . . . . . . . . . . . . . . . . . . . . . . . . Relay Couplers Released . | . . . . . . . . . . . . . . . . . . . . . . . . Fabnet Peak Effective % . | . . . . . . . . . . . . . . . . . . . . . . . . Robots Rewired 2 | . . . . . . . . . . . . . . . . . . . . 2 . . . Allies Hacked . | . . . . . . . . . . . . . . . . . . . . . . . . Hacks Repelled . | . . . . . . . . . . . . . . . . . . . . . . . . Allies | -11 -10 -10 -9 -9 -9 -8 -8 -7 -7 -7 -6 -6 -6 -6 -6 -6 -5 -5 -5 -5 -4 -3 -3 -------- Run | Yrd Mat Min Mat Min Exi Min Mat Fac Low Low Fac Was Fac Low Low Dat Pro Fac DSF Gar Fac Res DSF Total Allies 10 | . . 3 . . . 1 4 . . . . . . . . . . . . 2 . . . Largest Group 3 | . . 3 3 . . . 2 . . . . . . . . . . . . 2 . . . Highest-Rated Group 60 | . . 40 40 . . . 37 . . . . . . . . . . . . 60 . . . Highest-Rated Ally 30 | . . 16 16 . . . 29 . . . . . . . . . . . . 30 . . . Total Orders 1 | . . . . . . . 1 . . . . . . . . . . . . . . . . RETURN 1 | . . . . . . . 1 . . . . . . . . . . . . . . . . Ally Attacks 52 | . . . 8 . . 6 29 . . . . . . . . . . . . 9 . . . Total Damage 539 | . . . 88 . . 37 182 . . . . . . . . . . . . 232 . . . Kills 6 | . . . 1 . . . 3 . . . . . . . . . . . . 2 . . . Allies Corrupted . | . . . . . . . . . . . . . . . . . . . . . . . . Allies Melted . | . . . . . . . . . . . . . . . . . . . . . . . . Intel | -11 -10 -10 -9 -9 -9 -8 -8 -7 -7 -7 -6 -6 -6 -6 -6 -6 -5 -5 -5 -5 -4 -3 -3 ------- Run | Yrd Mat Min Mat Min Exi Min Mat Fac Low Low Fac Was Fac Low Low Dat Pro Fac DSF Gar Fac Res DSF Active Infowar (turns) 8649 | 30 197 132 300 77 412 279 514 236 725 39 1086 128 716 297 366 48 307 29 35 1706 825 10 155 Optics 5699 | . . . . . . . . . . . 1077 128 716 297 366 48 307 29 35 1706 825 10 155 Seismic 736 | 30 197 132 300 77 . . . . . . . . . . . . . . . . . . . T.N.C. 6400 | . . . . . 412 279 514 236 725 39 841 . . 173 366 48 307 29 35 1706 690 . . Robot Analysis Total 2 | . 2 . . . . . . . . . . . . . . . . . . . . . . Derelict Logs Recovered 5 | . . . . 1 . . . . 2 . . . . . 2 . . . . . . . . Drone Launches 30 | . . . . . . 4 26 . . . . . . . . . . . . . . . . Drone Recoveries 24 | . . . . . . 4 20 . . . . . . . . . . . . . . . . Exploration | -11 -10 -10 -9 -9 -9 -8 -8 -7 -7 -7 -6 -6 -6 -6 -6 -6 -5 -5 -5 -5 -4 -3 -3 ------------- Run | Yrd Mat Min Mat Min Exi Min Mat Fac Low Low Fac Was Fac Low Low Dat Pro Fac DSF Gar Fac Res DSF Turns Passed 8960 | 129 197 132 300 182 474 279 514 236 734 39 1086 128 716 297 366 48 307 29 35 1706 825 10 191 Spaces Moved 5730 | 56 101 83 138 223 426 101 203 73 396 32 644 106 478 240 568 81 483 47 32 643 491 19 66 Core 1033 | 19 . . . 199 195 . . . . . . 29 388 . . . . . . . 127 19 57 Treads 1907 | 37 101 83 138 24 231 101 203 . 60 . 22 . . . . . . . 11 643 244 . 9 Legs 689 | . . . . . . . . . . . 612 77 . . . . . . . . . . . Wheels 112 | . . . . . . . . . . . . . . . . . . . . . 112 . . Hover 1989 | . . . . . . . . 73 336 32 10 . 90 240 568 81 483 47 21 . 8 . . Flight . | . . . . . . . . . . . . . . . . . . . . . . . . Fastest Speed 50 | 50 160 160 160 50 50 160 160 102 102 110 110 50 50 60 56 56 56 60 60 160 50 50 50 Average Speed 114 | 153 160 160 160 61 109 160 190 102 158 123 122 108 126 92 56 56 57 60 94 160 114 50 67 Slowest Speed 290 | 200 160 160 160 160 160 160 240 102 290 170 190 195 150 110 60 56 60 60 160 160 160 50 200 Overloaded Moves . | . . . . . . . . . . . . . . . . . . . . . . . . Propulsion Burnouts . | . . . . . . . . . . . . . . . . . . . . . . . . Robots Hopped . | . . . . . . . . . . . . . . . . . . . . . . . . Potential Cave-ins 11 | . . . . 2 . . . . . . . . . . 9 . . . . . . . . Cave-ins Triggered . | . . . . . . . . . . . . . . . . . . . . . . . . Exploration Rate (%) 40 | 3 29 23 18 50 87 31 17 2 61 11 23 82 13 50 81 73 82 4 50 81 24 1 80 Regions Visited 23 Branch Regions 10 Pre-discovered Areas 1 | . . . . . . . . . . . . . . . . 1 . . . . . . . Known Exits Taken 7 | . 1 . 1 . . . 1 . . . . . 1 . . . 1 1 . . . 1 . Unknown Exits Taken 12 | 1 . 1 . 1 1 1 . 1 1 1 . . . 1 1 1 . . . . 1 . . Scrap Searched 13 | . . . . . . 1 . . 4 . . . . 1 3 . 4 . . . . . . Spaces Dug 69 | . . . 2 . . . 3 . . . 24 . 8 2 15 . . . . 1 13 . 1 Terrain Destroyed 248 | . . . 2 . . . 3 . . . 161 . 8 2 16 . 3 . . 28 23 . 2 Melee 54 | . . . 2 . . . 3 . . . 22 . 8 2 12 . . . . . 4 . 1 Projectile 59 | . . . . . . . . . . . 11 . . . 4 . 3 . . 21 19 . 1 AOE 135 | . . . . . . . . . . . 128 . . . . . . . . 7 . . . Terrain Rammed . | . . . . . . . . . . . . . . . . . . . . . . . . Walls Destroyed . | . . . . . . . . . . . . . . . . . . . . . . . . Machines Disabled . | . . . . . . . . . . . . . . . . . . . . . . . . Actions | -11 -10 -10 -9 -9 -9 -8 -8 -7 -7 -7 -6 -6 -6 -6 -6 -6 -5 -5 -5 -5 -4 -3 -3 --------- Run | Yrd Mat Min Mat Min Exi Min Mat Fac Low Low Fac Was Fac Low Low Dat Pro Fac DSF Gar Fac Res DSF Total 7568 | 80 127 82 181 243 433 207 289 234 467 31 853 119 575 301 590 83 501 47 37 1188 686 18 196 Wait 1242 | 4 15 . 16 3 . 95 44 155 20 . 115 6 65 51 . . 4 . . 419 128 . 102 Move 5706 | 55 100 82 137 222 425 100 202 72 395 31 644 105 477 239 567 80 482 46 31 640 490 18 66 Hop . | . . . . . . . . . . . . . . . . . . . . . . . . Pick Up 70 | 5 3 . 7 1 . 1 9 1 10 . 11 . 8 1 . 1 3 . 1 8 . . . Fast Attach 60 | 7 . . 1 . 2 . 4 . 4 . 8 2 2 . 1 . 2 . 2 8 9 . 8 Attach 49 | . . . 2 2 5 1 3 4 6 . 9 2 6 . 1 1 1 1 . 5 . . . Detach 9 | . . . . . 1 1 1 1 5 . . . . . . . . . . . . . . Swap 17 | . 4 . 1 1 . . . 1 . . 1 . . . 1 . . . . 6 2 . . Drop 48 | . 1 . . 3 . . 1 . 4 . 7 4 3 1 1 1 3 . 3 9 6 . 1 Fire 233 | 9 4 . 15 11 . 5 18 . 23 . 34 . 1 4 5 . 6 . . 63 27 . 8 Melee 82 | . . . 2 . . 4 7 . . . 24 . 13 5 14 . . . . . 11 . 2 Ram 3 | . . . . . . . . . . . . . . . . . . . . . 1 . 2 Kick . | . . . . . . . . . . . . . . . . . . . . . . . . Crush 2 | . . . . . . . . . . . . . . . . . . . . . . . 2 Escape Stasis 17 | . . . . . . . . . . . . . . . . . . . . . 12 . 5 Rewire 30 | . . . . . . . . . . . . . . . . . . . . 30 . . . Trap . | . . . . . . . . . . . . . . . . . . . . . . . . Miscellaneous . | . . . . . . . . . . . . . . . . . . . . . . . . Route ------- -11/Scrapyard -10/Materials (discovered 2 exits: *Min x2) -10/Mines (discovered 2 exits: *Mat x2) -9/Materials (discovered 3 exits: *Min x2 / *Sto) -9/Mines (discovered 3 exits: *Mat x2 / *Exi) -9/Exiles -8/Mines -8/Materials (discovered 3 exits: *Fac x3) -7/Factory -7/Lower Caves -7/Lower Caves -6/Factory (discovered 2 exits: Fac / *Low) -6/Waste -6/Factory (discovered 2 exits: *Low x2) -6/Lower Caves -6/Lower Caves (discovered 2 exits: *Fac / *Dat) -6/Data Miner -5/Proximity Caves -5/Factory (discovered 3 exits: Fac / Upp / DSF) -5/DSF -5/Garrison (discovered 3 exits: *Fac x3) -4/Factory (discovered 2 exits: *Res / Ext) -3/Research -3/DSF (discovered 1 exit: [*Res]) History --------- Turn | Location | Event 37 | -11/Scrapyard | Discovered new exit (range 16) 130 | -11/Scrapyard | Entered Materials 211 | -10/Materials | Identified exit to Mines 314 | -10/Materials | Build established: Mutant 327 | -10/Materials | Entered Mines 401 | -10/Mines | Discovered new exit (range 7) 403 | -10/Mines | Discovered new exit (range 9) 412 | -10/Mines | Assisted by bots powering up and referring to "LRC-V3" 459 | -10/Mines | Entered Materials 459 | -9/Materials | Accompanied by 3 allies 459 | -9/Materials | Evolved 2 slots: Utility x1, Weapon x1 468 | -9/Materials | Identified exit to Mines 468 | -9/Materials | Identified exit to Storage 508 | -9/Materials | Lost 3 allies 759 | -9/Materials | Entered Mines 761 | -9/Mines | Met a Derelict bent on vengeance 782 | -9/Mines | Discovered new exit (range 13) 789 | -9/Mines | Assembled infested the area 859 | -9/Mines | Core integrity fell below 50% 877 | -9/Mines | Found the Drone Emporium 879 | -9/Mines | Found Prototype Device 893 | -9/Mines | Lost 8 parts (2p2n2u2w) 901 | -9/Mines | Discovered new exit (range 14) 925 | -9/Mines | Learned 8 Materials zone layouts 938 | -9/Mines | Deemed a non-threat by the Exiles lab entrance 939 | -9/Mines | Discovered new exit (range 5) 941 | -9/Mines | Entered Exiles 955 | -9/Exiles | Met 8R-AWN 956 | -9/Exiles | Identified Splice Drone Bay 963 | -9/Exiles | Met EX-HEX 980 | -9/Exiles | Met EX-BIN 986 | -9/Exiles | Aligned with FarCom system 987 | -9/Exiles | Given EX-Vault access code 999 | -9/Exiles | Opened EX-Vault 1003 | -9/Exiles | Found Modified TNC 1013 | -9/Exiles | Warned to stay clear of 0b10 Research branches 1028 | -9/Exiles | Met EX-DEC 1183 | -9/Exiles | Visited The Gauntlet 1398 | -9/Exiles | Discovered new exit (range 12) 1415 | -9/Exiles | Left Exiles lab with Modified TNC 1415 | -9/Exiles | Entered Mines 1614 | -8/Mines | Core integrity fell below 20% 1663 | -8/Mines | Discovered new exit (range 5) 1694 | -8/Mines | Entered Materials 1694 | -8/Materials | Evolved 2 slots: Utility x2 1695 | -8/Materials | Identified exit to Factory 1737 | -8/Materials | Central database locked down 2208 | -8/Materials | Entered Factory 2208 | -7/Factory | Accompanied by 4 allies 2208 | -7/Factory | Evolved 2 slots: Propulsion x2 2414 | -7/Factory | Discovered new exit (range 11) 2444 | -7/Factory | Entered Lower Caves 2478 | -7/Lower Caves | Encountered a Warlord checkpoint 2590 | -7/Lower Caves | Learned location of 1 exit from Factory 2770 | -7/Lower Caves | Attracted the attention of an 0b10 checkpoint 2832 | -7/Lower Caves | Lost 3 parts (2n1u) 2902 | -7/Lower Caves | Lost 3 parts (1n2w) 3170 | -7/Lower Caves | Discovered new exit (range 5) 3178 | -7/Lower Caves | Entered another Lower Caves area 3183 | -7/Lower Caves | Encountered a Warlord checkpoint 3209 | -7/Lower Caves | Discovered new exit (range 8) 3217 | -7/Lower Caves | Entered Factory 3217 | -6/Factory | Evolved 2 slots: Weapon x2 3218 | -6/Factory | Identified exit to Factory 3230 | -6/Factory | Lost 3 parts (1p1n1w) 3779 | -6/Factory | Build established: Assassin 4148 | -6/Factory | Destroyed 11 combat bots 4176 | -6/Factory | Lost 4 parts (1p1u2w) 4253 | -6/Factory | Discovered new exit (range 21) 4303 | -6/Factory | Sucked down chute 4303 | -6/Factory | Entered Waste 4341 | -6/Waste | Spotted C-40 Crusher 4348 | -6/Waste | Spotted C-40 Crusher 4366 | -6/Waste | Spotted C-40 Crusher 4381 | -6/Waste | Spotted C-40 Crusher 4383 | -6/Waste | Crushed by Compactor (1 part destroyed, 2 dropped) 4391 | -6/Waste | Spotted C-40 Crusher 4400 | -6/Waste | Crushed by Compactor (1 part destroyed, 1 dropped) 4406 | -6/Waste | Spotted C-40 Crusher 4416 | -6/Waste | Crushed by Compactor (1 part destroyed, 2 dropped) 4426 | -6/Waste | Discovered new exit (range 10) 4431 | -6/Waste | Entered Factory 4447 | -6/Factory | Lost 3 parts (1n2w) 4808 | -6/Factory | Identified exit to Lower Caves 5147 | -6/Factory | Entered Lower Caves 5432 | -6/Lower Caves | Discovered new exit (range 9) 5442 | -6/Lower Caves | Build established: Skirmisher 5444 | -6/Lower Caves | Entered another Lower Caves area 5450 | -6/Lower Caves | Discovered exit to Factory (range 9) 5520 | -6/Lower Caves | Learned 4 Factory zone layouts 5545 | -6/Lower Caves | Spotted B-75 Beast 5800 | -6/Lower Caves | Discovered new exit (range 17) 5810 | -6/Lower Caves | Entered Data Miner 5810 | -6/Data Miner | Discovered new exit (range 6) 5818 | -6/Data Miner | Met Data Miner 5832 | -6/Data Miner | Learned location of Section 7 (-3) 5832 | -6/Data Miner | Acquired the access code to Warlord's prototype stash 5845 | -6/Data Miner | Received God Mode back door access code from Data Miner 5858 | -6/Data Miner | Entered Proximity Caves 5860 | -5/Proximity Caves | Spotter reported a threat 5861 | -5/Proximity Caves | Spotter reported a threat 6065 | -5/Proximity Caves | Attracted the attention of an 0b10 base 6108 | -5/Proximity Caves | Spotted B-75 Beast 6147 | -5/Proximity Caves | Discovered exit to Factory (range 11) 6165 | -5/Proximity Caves | Entered Factory 6165 | -5/Factory | Evolved 2 slots: Power x1, Propulsion x1 6166 | -5/Factory | Identified exit to Upper Caves 6167 | -5/Factory | Identified exit to Factory 6194 | -5/Factory | Identified exit to DSF 6194 | -5/Factory | Entered DSF 6200 | -5/DSF | Discovered new exit (range 22) 6219 | -5/DSF | Additional patrols routed to DSF 6229 | -5/DSF | Entered Garrison 6354 | -5/Garrison | Spotted B-75 Beast 6388 | -5/Garrison | Destroyed B-75 Beast 6815 | -5/Garrison | Triggered checkpoint 6971 | -5/Garrison | Build established: Scavenger-Skirmisher 7005 | -5/Garrison | Triggered checkpoint 7044 | -5/Garrison | Discovered exit to Factory (range 13) 7069 | -5/Garrison | Attempted to access garrison exit controls, blocked by remote lockdown 7417 | -5/Garrison | Discovered exit to Factory (range 21) 7452 | -5/Garrison | Attempted to access garrison exit controls, blocked by remote lockdown 7462 | -5/Garrison | Discovered exit to Factory (range 76) 7462 | -5/Garrison | Discovered exit to Factory (range 7) 7462 | -5/Garrison | Discovered exit to Factory (range 38) 7685 | -5/Garrison | Triggered checkpoint 7799 | -5/Garrison | Found Relay Coupler [Proto] 7802 | -5/Garrison | Found Relay Coupler [Proto] 7806 | -5/Garrison | Found Relay Coupler [Proto] 7809 | -5/Garrison | Found Relay Coupler [Proto] 7889 | -5/Garrison | Installed Relay Interface Framework 7921 | -5/Garrison | Triggered checkpoint 7935 | -5/Garrison | Entered Factory 7935 | -4/Factory | Evolved 2 slots: Utility x2 7936 | -4/Factory | Identified exit to Extension 8334 | -4/Factory | Spotted B-86 Titan 8383 | -4/Factory | Destroyed B-86 Titan 8562 | -4/Factory | Lost 7 parts (1p2n1u3w) 8685 | -4/Factory | Search patrols dispatched 8718 | -4/Factory | Core integrity fell below 50% 8751 | -4/Factory | Spotted B-86 Titan 8754 | -4/Factory | Core integrity fell below 20% 8754 | -4/Factory | Discovered new exit (range 14) 8760 | -4/Factory | Entered Research 8760 | -3/Research | Evolved 2 slots: Utility x2 8769 | -3/Research | Identified exit to DSF 8770 | -3/Research | Entered DSF 8777 | -3/DSF | Lost 10 parts (3p5n2w) 8793 | -3/DSF | Additional patrols routed to DSF 8899 | -3/DSF | Build established: Bothacker-Mutant 8932 | -3/DSF | Core integrity fell below 50% 8954 | -3/DSF | Core integrity fell below 20% 8959 | -3/DSF | Discovered new exit (range 14) 8961 | -3/DSF | Destroyed by X-82 Rainmaker with Heavy Flak Cannon Last Messages --------------- 08931_ Destabilizing: System corrupted (+1). 08932_ Slammed into C-35 Carver. 08932_ Destabilizing: System corrupted (+2). 08933_ Acquired 75 matter. 08934_ Acquired Hyp. Railgun. 08935_ C-35 Carver destroyed. 08935_ Hyp. Railgun severed. 08936_ Acquired Linear Accelerator. 08940_ C-35 Carver knocked back. 08942_ Dropped Linear Accelerator. 08950_ ALERT: Suspicious intruders detected, dispatching Cutter reinforcements to area. 08954_ Knocked back. 08954_ A-15 Conveyor knocked back. 08955_ Knocked back. 08959_ EXIT=FOUND 08959_ C-30 ARC bursts open, deploying its payload. 08959_ B-74 Champion unfolds itself. 08959_ G-67 Veteran unfolds itself. Map ----- +----------------------------------------------------+ | ???????????????????????????????????? | | ???????????????????????????????????? | | ????????????????????#########??????? | | ????????????????????# =######## | | ????????????????????# /!==]"[[# | | ????????????????????# =^^[!*=% | | ????????????????????# =^==%!=[ | | ????????????????????### ###==[#]]# | | ?????????????????????## ###[[[#]]# | | ?????????????????????!! ######## | | ????????????????????#!! ????????# | | ????????????????????#!! ????????# | | ????????????????????### ###??????# | | ????????????????????#** !!#??????# | | ????????????????????#** !!#??????# | | ?????????????????????** !!???????# | | ??????################# #?######## | | ??????#!! ## #!!!### ###===#= | | ??????#!! ## #!!!## ## = | | ?????##!! = | | ?????#;!! H | | ??????#!! c cc ! | | ??????# ## c #***## #!!! | | ??????# c## #***### ## #!!! | | ??????### ##########?# #?######## | | ???????#! @!#??????? ==???????? | | ???????#! !!#??????# ==#??????? | | ???????#! !!#??????# ==#??????? | | ???????## ###??????### ###??????? | | ????????! ??????????! ????????? | | ???????#!g ??????????! ????????? | | ???????## #?????????!! ???????? | | ????????# x#?????????## ##???????? | | ????????"ggb??????????# #????????? | | ????????" ??????????? ????????? | | ????????"< ??????????? ????????? | | ????????"""????????????!!!?????????? | | ????????"""????????????????????????? | | ???????????????????????????????????? | | ???????????????????????????????????? | | ???????????????????????????????????? | | ???????????????????????????????????? | | ???????????????????????????????????? | | ???????????????????????????????????? | | ???????????????????????????????????? | | ???????????????????????????????????? | | | | | | | | | +----------------------------------------------------+ Best States ------------- Heat Dissipation 81 Energy Generation 31 Energy Capacity 290 Matter Stores 300 Matter Capacity 300 Sight Range 22 Terrain Scan Density 10 Armor Coverage 225 Resistance: TH 15 Evasion (%) 55 Recoil Reduction 5 Salvage Targeting 2 Authchip Count 1 Item Schematics ----------------- Combat Drone Bay | -6/Data Miner | Free Lgt. Regenerative Plating | -6/Data Miner | Free Enh. Armored Leg | -6/Data Miner | Free Prc. Matter Filter | -6/Data Miner | Free Smartbomb Launcher | -6/Data Miner | Free Imp. Linear Gravjet | -6/Data Miner | Free Adv. Power Amplifier | -6/Data Miner | Free Dispersion Rifle | -6/Data Miner | Free Imp. Corruption Screen | -6/Data Miner | Free Adv. Reaction Control System | -6/Data Miner | Free Imp. Fusion Compressor | -6/Data Miner | Free Hyp. Railgun | -6/Data Miner | Free Robot Schematics ------------------ M-30 Cleanser | -6/Data Miner | Free R-10 Processor | -6/Data Miner | Free S-27 Virus | -6/Data Miner | Free L-41 Fighter | -6/Data Miner | Free C-35 Carver | -6/Data Miner | Free B-48 Gladiator | -6/Data Miner | Free Fabricated ------------ Nothing Repaired ---------- Nothing Studied --------- Lgt. Treads | -8/Materials | Hacked Imp. Treads | -8/Materials | Hacked Alien Tech Used ----------------- None Achievements -------------- None Challenges ------------ None Game ------ Seed SensorCloakCore Manual? 0 Play Time 01:22:02 Cumulative 321.1 hours Start 2026.09.21 @ 09:32:15 End 2026.09.21 @ 23:13:56 Sessions 6 Manual Loads 0 Difficulty Rogue Special Mode None Game No. 396 Rogue 396 Adventurer 0 Explorer 0 Win Type - Total 10 Types 7/0/1/1/0/0/0/1/0/0 Lore% 82 Gallery% 70 Achievement% 60 Wizard Run 0 Options --------- Layout 2 ASCII 0 Keyboard 0 Movement Mouse Keybinds 0 Fullscreen 1 Font 16/SmallcapsGlow Map View 50x49 Zoom Use 2% Tactical HUD 1 Map Filters NONE Filters NONE Steam SD RUN: cf72ec5a-6cee-44b8-ac4e-312f538f6d1e